bitfinex/quotes_SOLUSD_20250622
["timestamp","ask_amount","ask_price","bid_price","bid_amount"]
[1750611113504,2.81051228,129.66,129.64,19.11990465]
[1750611113912,2.81051228,129.67,129.64,19.11990465]
[1750611114513,19.11990465,129.68,129.63,26.0]
[1750611114514,21.93041693,129.66,129.63,26.0]
[1750611114998,2.81051228,129.66,129.63,26.0]
[1750611115196,2.81051228,129.66,129.63,45.11990465]
[1750611115411,21.93041693,129.67,129.63,45.11990465]
[1750611115728,2.81051228,129.66,129.63,45.11990465]
[1750611115907,21.93041693,129.66,129.63,26.0]
[1750611117230,19.11990465,129.66,129.63,26.0]
[1750611117428,21.93041693,129.66,129.63,26.0]
[1750611119233,19.11990465,129.66,129.63,26.0]
[1750611119410,21.93041693,129.66,129.63,26.0]
[1750611119731,21.93041693,129.68,129.64,19.11990465]
[1750611120028,2.81051228,129.71,129.67,26.0]
[1750611120242,22.62041693,129.71,129.67,26.0]
[1750611120543,19.11990465,129.69,129.67,26.0]
[1750611120717,21.93041693,129.68,129.62,26.0]
[1750611120910,21.93041693,129.68,129.64,19.11990465]
[1750611121110,22.62041693,129.67,129.62,18.64964886]
[1750611121409,0.69,129.65,129.61,20.76440465]
[1750611121615,3.50051228,129.68,129.64,19.11990465]
[1750611121916,2.81051228,129.69,129.65,19.11990465]
[1750611122127,2.81051228,129.68,129.63,18.64964886]
[1750611122427,2.81051228,129.68,129.65,19.11990465]
[1750611122602,2.81051228,129.7,129.67,19.11990465]
[1750611122805,2.81051228,129.7,129.68,19.11990465]
[1750611123420,2.81051228,129.7,129.67,19.11990465]
[1750611123739,22.62041693,129.72,129.68,19.11990465]
[1750611123939,3.50051228,129.72,129.68,19.11990465]
[1750611124625,2.81051228,129.71,129.68,19.11990465]
[1750611125113,3.50051228,129.71,129.68,19.11990465]
[1750611125313,2.81051228,129.7,129.68,19.11990465]
[1750611125634,2.81051228,129.72,129.68,19.11990465]
[1750611125829,2.81051228,129.71,129.68,19.11990465]
[1750611126030,3.50051228,129.72,129.68,19.11990465]
[1750611126910,2.81051228,129.71,129.68,19.11990465]
[1750611127936,2.81051228,129.7,129.68,19.11990465]
[1750611128134,2.81051228,129.71,129.68,19.11990465]
[1750611128538,22.62041693,129.72,129.68,19.11990465]
[1750611128742,2.81051228,129.71,129.68,19.11990465]
[1750611129038,2.81051228,129.74,129.7,19.11990465]
[1750611129207,2.81051228,129.74,129.71,10.71233858]
[1750611129407,2.81051228,129.72,129.69,36.71233858]
[1750611130035,2.81051228,129.72,129.69,26.0]
[1750611130425,13.52285086,129.72,129.69,26.0]
[1750611131528,14.21285086,129.7,129.65,113.4]
[1750611131739,2.81051228,129.7,129.67,26.0]
[1750611131930,13.52285086,129.71,129.67,26.0]
[1750611132238,10.71233858,129.71,129.67,36.71233858]
[1750611132621,2.81051228,129.74,129.68,29.36198744]
[1750611132943,13.52285086,129.72,129.68,10.71233858]
[1750611133329,13.52285086,129.72,129.67,10.71233858]
[1750611133528,13.52285086,129.71,129.66,55.36198744]
[1750611133848,13.52285086,129.71,129.66,56.10198744]
[1750611134840,10.71233858,129.72,129.68,10.71233858]
[1750611135055,13.52285086,129.73,129.68,10.71233858]
[1750611135344,13.52285086,129.72,129.68,10.71233858]
[1750611135639,10.71233858,129.74,129.7,10.71233858]
[1750611135843,9.37701228,129.77,129.72,10.71233858]
[1750611136037,13.52285086,129.75,129.71,27.6377]
[1750611136226,0.69,129.77,129.71,36.71233858]
[1750611136227,13.52285086,129.76,129.71,36.71233858]
[1750611136545,13.52285086,129.76,129.71,26.74]
[1750611136729,13.52285086,129.76,129.71,37.45233858]
[1750611137243,2.81051228,129.75,129.71,37.45233858]
[1750611137443,2.81051228,129.76,129.75,26.0]
[1750611137836,13.52285086,129.76,129.75,26.0]
[1750611138030,2.81051228,129.76,129.75,26.0]
[1750611138636,2.81051228,129.76,129.71,0.74]
[1750611138828,13.52285086,129.76,129.72,26.0]
[1750611139028,10.71233858,129.75,129.74,26.0]
[1750611139241,2.81051228,129.75,129.74,26.0]
[1750611139548,10.71233858,129.75,129.74,26.0]
[1750611139719,2.81051228,129.74,129.73,26.0]
[1750611139922,13.52285086,129.74,129.73,26.0]
[1750611140119,2.81051228,129.74,129.73,26.0]
[1750611140436,13.52285086,129.74,129.73,26.0]
[1750611141134,2.81051228,129.74,129.73,26.0]
[1750611142855,3.55051228,129.74,129.72,26.0]
[1750611143027,2.81051228,129.73,129.72,26.0]
[1750611143730,2.81051228,129.76,129.72,36.71233858]
[1750611144055,2.81051228,129.76,129.73,10.71233858]
[1750611144841,2.81051228,129.75,129.74,26.0]
[1750611145352,2.81051228,129.76,129.75,26.0]
[1750611145550,2.81051228,129.76,129.74,10.71233858]
[1750611145747,1.81051228,129.76,129.74,10.71233858]
[1750611147699,1.81051228,129.76,129.73,26.72]
[1750611147835,1.81051228,129.76,129.74,10.71233858]
[1750611149166,1.81051228,129.76,129.74,14.53839856]
[1750611149572,1.81051228,129.76,129.74,3.82605998]
[1750611149735,1.81051228,129.76,129.73,36.71233858]
[1750611149935,1.81051228,129.76,129.74,10.71233858]
[1750611150757,1.81051228,129.76,129.73,36.71233858]
[1750611151971,12.52285086,129.77,129.73,36.71233858]
[1750611152263,1.81051228,129.76,129.73,36.71233858]
[1750611152871,1.81051228,129.77,129.73,36.71233858]
[1750611153051,19.5438339,129.85,129.73,36.71233858]
[1750611153052,1.81051228,129.8,129.76,10.71233858]
[1750611153248,1.81051228,129.8,129.73,29.77425151]
[1750611153249,1.81051228,129.8,129.78,10.71233858]
[1750611153441,0.74,129.82,129.78,10.71233858]
[1750611153442,1.81051228,129.79,129.78,10.71233858]
[1750611153656,1.81051228,129.79,129.75,44.64964886]
[1750611153657,1.81051228,129.79,129.77,10.71233858]
[1750611153891,1.81051228,129.79,129.75,45.36964886]
[1750611153892,2.55051228,129.79,129.76,10.71233858]
[1750611154158,1.81051228,129.77,129.73,30.28390037]
[1750611154372,1.81051228,129.77,129.73,22.34659009]
[1750611154584,1.81051228,129.77,129.74,10.71233858]
[1750611157691,1.81051228,129.77,129.73,23.06659009]
[1750611157982,1.81051228,129.77,129.74,10.71233858]
[1750611158481,1.81051228,129.78,129.74,10.71233858]
[1750611158646,1.81051228,129.81,129.77,11.43233858]
[1750611158852,1.81051228,129.83,129.79,10.71233858]
[1750611159066,9.41635853,129.86,129.83,0.72]
[1750611159394,1.81051228,129.84,129.82,10.71233858]
[1750611159585,1.81051228,129.84,129.81,10.71233858]
[1750611159900,1.81051228,129.84,129.82,10.71233858]
[1750611160398,1.81051228,129.84,129.81,10.71233858]
[1750611160788,1.81051228,129.85,129.81,10.71233858]
[1750611160984,1.81051228,129.84,129.81,10.71233858]
[1750611161963,12.52285086,129.85,129.81,10.71233858]
[1750611162264,1.81051228,129.85,129.81,10.71233858]
[1750611162476,1.81051228,129.84,129.81,10.71233858]
[1750611163864,1.81051228,129.83,129.79,44.57233858]
[1750611164060,1.81051228,129.83,129.8,10.71233858]
[1750611164363,1.81051228,129.83,129.81,10.71233858]
[1750611164586,12.52285086,129.84,129.8,10.71233858]
[1750611164764,1.81051228,129.83,129.8,10.71233858]
[1750611165287,1.81051228,129.83,129.79,33.86]
[1750611165591,2.55051228,129.83,129.79,33.86]
[1750611165765,1.81051228,129.82,129.79,44.57233858]
[1750611165968,13.26285086,129.82,129.78,10.71233858]
[1750611166264,1.81051228,129.8,129.77,10.71233858]
[1750611168004,1.81051228,129.8,129.76,26.0]
[1750611168208,1.81051228,129.8,129.76,10.71233858]
[1750611168209,1.81051228,129.79,129.76,10.71233858]
[1750611168381,1.81051228,129.79,129.77,26.0]
[1750611170237,1.81051228,129.79,129.77,10.71233858]
[1750611172981,1.81051228,129.8,129.77,10.71233858]
[1750611173794,1.81051228,129.81,129.79,10.71233858]
[1750611174000,1.81051228,129.8,129.76,0.72]
[1750611174303,1.81051228,129.81,129.75,44.64964886]
[1750611174505,1.81051228,129.8,129.78,10.71233858]
[1750611174911,1.81051228,129.81,129.78,10.71233858]
[1750611175097,1.81051228,129.81,129.79,10.71233858]
[1750611175297,1.81051228,129.82,129.79,11.43233858]
[1750611175895,1.81051228,129.81,129.79,11.43233858]
[1750611176286,1.81051228,129.82,129.79,11.43233858]
[1750611176693,1.81051228,129.8,129.78,10.71233858]
[1750611178198,1.81051228,129.81,129.78,10.71233858]
[1750611178592,1.81051228,129.82,129.78,10.71233858]
[1750611178792,1.81051228,129.81,129.78,10.71233858]
[1750611179008,1.81051228,129.82,129.78,10.71233858]
[1750611179313,11.40233858,129.83,129.78,10.71233858]
[1750611179314,1.81051228,129.81,129.78,10.71233858]
[1750611179499,1.81051228,129.8,129.78,10.71233858]
[1750611179814,1.81051228,129.79,129.76,19.36964886]
[1750611180013,1.81051228,129.86,129.81,0.72]
[1750611180188,1.6831228,129.87,129.85,10.71233858]
[1750611180388,1.6831228,129.87,129.84,30.08198744]
[1750611180389,1.6831228,129.87,129.86,10.71233858]
[1750611180914,1.6831228,129.87,129.86,11.43233858]
[1750611182924,1.6831228,129.87,129.86,30.08198744]
[1750611183092,1.6831228,129.87,129.86,63.78258808]
[1750611183299,1.6831228,129.87,129.86,65.28278808]
[1750611184419,1.81051228,129.96,129.91,0.72]
[1750611184619,1.81051228,129.96,129.95,10.71233858]
[1750611184796,1.81051228,129.97,129.95,10.71233858]
[1750611185239,2.50051228,129.98,129.95,10.71233858]
[1750611185422,1.81051228,129.95,129.93,10.71233858]
[1750611185619,2.50051228,129.98,129.94,10.71233858]
[1750611185805,1.81051228,129.98,129.95,10.71233858]
[1750611186002,1.81051228,129.99,129.97,10.71233858]
[1750611186196,1.81051228,130.01,129.99,18.64964886]
[1750611186395,1.81051228,130.02,130.0,10.71233858]
[1750611186704,1.81051228,130.0,129.99,10.71233858]
[1750611187118,1.81051228,130.0,129.98,10.71233858]
[1750611187289,1.81051228,130.01,129.99,10.71233858]
[1750611187487,1.81051228,130.01,129.96,29.36198744]
[1750611187488,1.81051228,129.99,129.96,18.64964886]
[1750611187896,1.81051228,129.97,129.95,3.84274625]
[1750611188214,1.81051228,129.95,129.93,10.71233858]
[1750611188803,1.81051228,129.96,129.94,10.71233858]
[1750611189124,1.81051228,129.96,129.95,10.71233858]
[1750611189429,1.81051228,129.96,129.94,18.97479428]
[1750611190036,1.81051228,129.95,129.92,18.97479428]
[1750611190238,1.81051228,129.94,129.91,18.97479428]
[1750611190396,1.81051228,129.92,129.89,22.74168483]
[1750611190600,1.81051228,129.92,129.9,18.97479428]
[1750611192528,1.81051228,129.91,129.89,18.97479428]
[1750611193107,1.81051228,129.91,129.88,27.6139]
[1750611193108,1.81051228,129.91,129.88,18.97479428]
[1750611193319,1.81051228,129.9,129.87,7.82]
[1750611193516,1.81051228,129.9,129.87,26.79479428]
[1750611193718,1.81051228,129.89,129.87,26.79479428]
[1750611193925,1.81051228,129.89,129.88,18.97479428]
[1750611194118,1.81051228,129.89,129.87,26.79479428]
[1750611194942,1.81051228,129.89,129.87,7.82]
[1750611195234,1.81051228,129.89,129.87,26.79479428]
[1750611195798,1.81051228,129.9,129.88,18.97479428]
[1750611196029,1.81051228,129.92,129.89,18.97479428]
[1750611196208,1.81051228,129.92,129.88,18.64964886]
[1750611196539,1.81051228,129.92,129.9,18.97479428]
[1750611196915,1.81051228,129.91,129.9,18.97479428]
[1750611197117,1.81051228,129.91,129.89,18.97479428]
[1750611197439,1.81051228,129.92,129.89,18.97479428]
[1750611197619,1.81051228,129.9,129.88,18.97479428]
[1750611198028,1.81051228,129.89,129.87,26.79479428]
[1750611198232,1.81051228,129.89,129.88,18.97479428]
[1750611198634,1.81051228,129.92,129.88,18.97479428]
[1750611198831,1.81051228,129.93,129.91,18.97479428]
[1750611199237,1.81051228,129.92,129.91,18.97479428]
[1750611199643,18.97479428,129.95,129.91,18.97479428]
[1750611199644,1.81051228,129.93,129.91,18.97479428]
[1750611200443,18.97479428,129.95,129.87,31.08212568]
[1750611200444,1.81051228,129.92,129.9,18.97479428]
[1750611200740,1.81051228,129.91,129.9,18.97479428]
[1750611201338,1.81051228,129.92,129.9,18.97479428]
[1750611201945,1.81051228,129.95,129.91,37.62444314]
[1750611202246,1.81051228,130.0,129.95,18.64964886]
[1750611202449,1.81051228,129.99,129.95,18.64964886]
[1750611202626,1.81051228,129.97,129.96,18.97479428]
[1750611203047,1.81051228,129.97,129.93,7.78]
[1750611203219,1.81051228,129.95,129.93,18.97479428]
[1750611203624,1.81051228,129.95,129.94,18.97479428]
[1750611205047,1.81051228,129.95,129.93,18.97479428]
[1750611205431,1.81051228,129.94,129.93,18.97479428]
[1750611206665,1.81051228,129.94,129.92,18.97479428]
[1750611206831,1.81051228,129.93,129.91,0.72]
[1750611207166,1.81051228,129.95,129.92,18.97479428]
[1750611207842,1.81051228,129.95,129.93,18.97479428]
[1750611208034,1.81051228,129.95,129.94,18.97479428]
[1750611208239,1.81051228,129.99,129.94,19.43479428]
[1750611208554,1.81051228,130.0,129.98,18.97479428]
[1750611209237,1.81051228,130.0,129.94,2.0857]
[1750611209238,1.81051228,130.01,129.99,18.97479428]
[1750611209449,1.81051228,130.02,130.0,18.97479428]
[1750611209749,1.81051228,130.02,130.01,18.97479428]
[1750611209963,1.81051228,130.04,129.98,44.64964886]
[1750611210257,1.81051228,130.05,130.03,18.97479428]
[1750611210464,0.81051228,130.04,130.03,18.97479428]
[1750611210762,0.81051228,130.02,130.01,18.97479428]
[1750611210964,0.81051228,130.04,130.01,18.97479428]
[1750611211171,0.81051228,130.03,130.02,18.97479428]
[1750611212147,0.81051228,130.03,129.99,7.78]
[1750611212348,0.81051228,130.03,130.02,18.97479428]
[1750611212574,0.81051228,130.01,129.98,18.97479428]
[1750611212957,0.81051228,130.01,129.99,18.97479428]
[1750611213355,0.81051228,129.98,129.94,9.4057]
[1750611213768,0.81051228,129.98,129.96,18.97479428]
[1750611214287,6.2526,130.03,129.91,1.46]
[1750611214288,0.81051228,129.96,129.91,1.46]
[1750611214464,0.81051228,129.97,129.95,18.97479428]
[1750611214652,0.81051228,129.97,129.91,1.46]
[1750611214849,0.81051228,129.97,129.95,18.97479428]
[1750611215678,0.81051228,129.98,129.95,18.97479428]
[1750611216177,0.81051228,129.98,129.96,18.97479428]
[1750611216354,0.81051228,129.98,129.95,44.97479428]
[1750611216754,0.81051228,129.98,129.95,26.0]
[1750611217078,0.81051228,129.98,129.96,18.97479428]
[1750611217278,0.81051228,129.99,129.97,18.97479428]
[1750611217465,0.81051228,130.01,129.98,18.97479428]
[1750611217790,0.81051228,130.0,129.98,18.97479428]
[1750611218182,0.81051228,129.99,129.96,18.97479428]
[1750611218362,0.81051228,129.98,129.96,18.97479428]
[1750611218559,0.81051228,129.98,129.95,18.97479428]
[1750611218757,0.81051228,129.96,129.94,18.97479428]
[1750611218969,0.81051228,129.97,129.91,34.96]
[1750611219176,0.81051228,129.96,129.94,18.97479428]
[1750611219484,0.81051228,129.96,129.93,18.97479428]
[1750611219666,0.81051228,129.95,129.93,18.97479428]
[1750611219865,0.81051228,129.95,129.92,18.97479428]
[1750611220065,0.81051228,129.94,129.93,18.97479428]
[1750611220463,0.81051228,129.96,129.91,34.5]
[1750611220779,0.81051228,129.94,129.93,18.97479428]
[1750611221563,0.81051228,129.96,129.93,18.97479428]
[1750611221765,0.81051228,129.96,129.94,18.97479428]
[1750611222061,1.5878,130.0,129.95,18.97479428]
[1750611222062,0.81051228,129.98,129.95,18.97479428]
[1750611222375,0.81051228,129.99,129.93,0.74]
[1750611222576,0.81051228,129.99,129.97,18.97479428]
[1750611222812,0.81051228,130.03,129.98,18.97479428]
[1750611222970,0.81051228,130.03,130.02,18.97479428]
[1750611223482,0.81051228,130.04,130.01,18.97479428]
[1750611223792,0.81051228,130.03,130.01,18.97479428]
[1750611224161,0.81051228,130.03,130.0,18.97479428]
[1750611224362,0.81051228,130.02,130.0,18.97479428]
[1750611224558,0.81051228,130.02,129.98,26.0]
[1750611224774,0.81051228,130.0,129.99,18.97479428]
[1750611224980,0.81051228,130.0,129.94,10.1113]
[1750611225292,0.81051228,129.99,129.97,44.97479428]
[1750611225588,0.81051228,129.98,129.97,18.97479428]
[1750611225791,0.81051228,129.97,129.95,18.97479428]
[1750611226090,0.81051228,129.97,129.96,18.97479428]
[1750611226288,0.81051228,129.98,129.96,18.97479428]
[1750611226488,0.81051228,129.97,129.95,18.97479428]
[1750611227076,0.81051228,129.96,129.95,18.97479428]
[1750611228199,0.81051228,129.96,129.94,33.78]
[1750611228376,0.81051228,129.96,129.95,18.97479428]
[1750611228698,0.81051228,129.96,129.94,7.78]
[1750611228868,6.7916,130.0,129.94,26.75479428]
[1750611228869,0.81051228,129.95,129.94,26.75479428]
[1750611229194,0.81051228,129.95,129.94,7.78]
[1750611229497,0.81051228,129.95,129.94,26.75479428]
[1750611229799,0.81051228,129.97,129.94,26.75479428]
[1750611230092,0.81051228,129.97,129.95,18.97479428]
[1750611231863,0.81051228,129.99,129.96,18.97479428]
[1750611232067,0.68,130.02,129.98,18.97479428]
[1750611232068,0.81051228,130.01,129.98,18.97479428]
[1750611232369,0.68,130.02,129.98,18.97479428]
[1750611232370,1.49051228,130.02,129.98,18.97479428]
[1750611232583,0.81051228,130.01,129.99,18.97479428]
[1750611232769,0.81051228,130.0,129.99,18.97479428]
[1750611233387,0.81051228,130.04,129.99,37.94958856]
[1750611233565,0.81051228,130.05,130.03,18.97479428]
[1750611233763,0.81051228,130.05,130.04,18.97479428]
[1750611234583,7.05321228,130.07,130.04,18.97479428]
[1750611234778,0.81051228,130.07,130.06,18.97479428]
[1750611235599,0.81051228,130.08,130.06,18.97479428]
[1750611235773,0.81051228,130.1,130.07,18.97479428]
[1750611235969,0.81051228,130.09,130.06,26.0]
[1750611236311,0.81051228,130.1,130.08,18.97479428]
[1750611236482,0.81051228,130.1,130.09,18.97479428]
[1750611237277,0.81051228,130.12,130.09,18.97479428]
[1750611237472,0.81051228,130.12,130.06,53.10964886]
[1750611237671,1.6831228,130.13,130.06,53.10964886]
[1750611237672,0.81051228,130.11,130.06,53.10964886]
[1750611237872,0.81051228,130.1,130.09,18.97479428]
[1750611238173,0.81051228,130.12,130.09,18.97479428]
[1750611238375,2.49363508,130.13,130.11,18.97479428]
[1750611238699,2.49363508,130.13,130.12,18.97479428]
[1750611239078,0.81051228,130.1,130.08,26.0]
[1750611239382,0.81051228,130.08,130.06,3.87553403]
[1750611239580,0.81051228,130.07,130.06,18.97479428]
[1750611239781,0.81051228,130.07,130.05,18.97479428]
[1750611240191,0.81051228,130.06,130.05,18.97479428]
[1750611240390,0.81051228,130.07,130.04,18.97479428]
[1750611240589,0.81051228,130.06,130.05,18.97479428]
[1750611240894,0.81051228,130.06,130.04,18.97479428]
[1750611241580,0.81051228,130.06,130.03,18.97479428]
[1750611241780,0.81051228,130.04,130.02,18.97479428]
[1750611241981,0.81051228,130.04,130.02,22.82328892]
[1750611242185,0.81051228,130.04,130.03,18.97479428]
[1750611242709,0.81051228,130.06,130.03,18.97479428]
[1750611242901,0.81051228,130.06,130.05,18.97479428]
[1750611243799,0.81051228,130.07,130.05,18.97479428]
[1750611244004,0.81051228,130.07,130.06,18.97479428]
[1750611244707,0.81051228,130.06,130.05,18.97479428]
[1750611245606,0.81051228,130.05,130.02,29.8997001]
[1750611245788,0.81051228,130.04,130.03,18.97479428]
[1750611247200,0.81051228,130.03,130.02,22.7458954]
[1750611247406,0.81051228,129.99,129.95,18.97479428]
[1750611247596,0.81051228,129.96,129.95,18.97479428]
[1750611248995,0.81051228,129.96,129.92,27.6324]
[1750611249197,0.81051228,129.96,129.95,18.97479428]
[1750611249391,0.81051228,129.97,129.95,18.97479428]
[1750611249592,0.81051228,129.97,129.96,18.97479428]
[1750611250015,0.81051228,129.97,129.95,18.97479428]
[1750611250323,0.81051228,129.97,129.96,18.97479428]
[1750611251197,0.81051228,129.98,129.96,18.97479428]
[1750611251609,0.81051228,130.02,129.97,19.64479428]
[1750611251814,0.81051228,129.99,129.97,26.0]
[1750611252126,0.81051228,130.01,129.98,18.97479428]
[1750611252289,0.81051228,130.01,129.97,26.0]
[1750611252290,0.81051228,130.01,130.0,18.97479428]
[1750611253109,0.81051228,130.02,129.95,3.85993778]
[1750611253328,0.81051228,129.97,129.94,7.74]
[1750611253536,0.81051228,129.97,129.96,18.97479428]
[1750611253947,0.81051228,129.96,129.95,18.97479428]
[1750611254919,0.81051228,129.95,129.94,22.92189097]
[1750611255692,0.81051228,129.95,129.94,18.97479428]
[1750611256006,0.81051228,129.95,129.93,44.97479428]
[1750611256209,0.81051228,129.95,129.94,18.97479428]
[1750611256801,0.81051228,129.98,129.94,18.97479428]
[1750611257026,0.81051228,129.99,129.97,18.97479428]
[1750611257419,0.81051228,129.99,129.98,18.97479428]
[1750611258431,0.81051228,130.0,129.98,18.97479428]
[1750611258607,0.81051228,130.0,129.99,18.97479428]
[1750611259336,0.81051228,129.98,129.97,18.97479428]
[1750611261611,0.81051228,129.98,129.96,18.97479428]
[1750611261933,0.81051228,130.01,129.97,18.97479428]
[1750611262233,0.81051228,130.01,130.0,18.97479428]
[1750611263935,0.81051228,130.01,129.97,26.0]
[1750611264104,0.81051228,130.01,130.0,18.97479428]
[1750611264309,0.81051228,129.97,129.95,26.0]
[1750611264543,0.81051228,129.97,129.96,18.97479428]
[1750611264725,0.81051228,129.97,129.95,26.0]
[1750611264925,0.81051228,129.97,129.96,18.97479428]
[1750611265123,0.81051228,129.92,129.91,0.72]
[1750611265638,1.52051228,129.92,129.91,0.72]
[1750611267431,29.29681933,129.92,129.91,0.72]
[1750611267618,29.29681933,129.92,129.91,0.22]
[1750611269315,0.81051228,129.92,129.91,0.22]
[1750611269525,29.29681933,129.92,129.91,0.22]
[1750611270146,0.81051228,129.85,129.84,157.05769803]
[1750611270438,0.81051228,129.85,129.84,184.83400508]
[1750611270640,0.81051228,129.85,129.84,157.05769803]
[1750611271015,27.77630705,129.86,129.81,27.77630705]
[1750611271016,0.81051228,129.83,129.81,27.77630705]
[1750611271252,0.81051228,129.83,129.81,53.77630705]
[1750611271734,0.81051228,129.83,129.81,27.77630705]
[1750611271919,0.81051228,129.82,129.81,27.77630705]
[1750611272121,0.81051228,129.82,129.8,27.77630705]
[1750611272349,33.81,129.88,129.78,8.44]
[1750611272350,0.81051228,129.81,129.78,8.44]
[1750611272644,27.77630705,129.84,129.78,8.44]
[1750611272645,0.81051228,129.82,129.79,53.77630705]
[1750611272839,0.81051228,129.81,129.8,27.77630705]
[1750611273022,0.81051228,129.81,129.79,26.0]
[1750611273225,0.81051228,129.81,129.78,8.44]
[1750611273442,0.81051228,129.81,129.8,27.77630705]
[1750611273953,0.81051228,129.81,129.78,8.44]
[1750611274157,0.81051228,129.81,129.78,35.49630705]
[1750611274366,0.81051228,129.79,129.78,27.77630705]
[1750611274720,0.81051228,129.77,129.73,112.09336098]
[1750611274941,0.81051228,129.77,129.74,0.72]
[1750611275431,0.81051228,129.77,129.73,105.17756098]
[1750611275621,0.81051228,129.76,129.74,27.77630705]
[1750611275816,0.81051228,129.75,129.74,27.77630705]
[1750611276047,0.81051228,129.78,129.74,27.77630705]
[1750611276221,0.81051228,129.78,129.77,27.77630705]
[1750611280143,0.81051228,129.79,129.77,27.77630705]
[1750611280358,0.81051228,129.79,129.78,27.77630705]
[1750611281430,0.81051228,129.8,129.78,28.49630705]
[1750611281621,0.81051228,129.81,129.79,27.77630705]
[1750611281816,0.81051228,129.82,129.8,27.77630705]
[1750611282133,0.81051228,129.84,129.81,28.49630705]
[1750611282333,0.81051228,129.82,129.79,1.5709]
[1750611282522,0.81051228,129.82,129.8,27.77630705]
[1750611282728,0.81051228,129.81,129.8,27.77630705]
[1750611282923,0.81051228,129.8,129.79,26.0]
[1750611283149,0.81051228,129.8,129.78,26.0]
[1750611283150,0.81051228,129.79,129.78,27.77630705]
[1750611283357,0.81051228,129.78,129.76,27.77630705]
[1750611283641,0.81051228,129.77,129.76,27.77630705]
[1750611284232,0.81051228,129.76,129.75,27.77630705]
[1750611285138,0.81051228,129.78,129.75,28.49630705]
[1750611285453,0.81051228,129.78,129.77,27.77630705]
[1750611287154,0.81051228,129.78,129.77,19.02792579]
[1750611287452,0.81051228,129.77,129.76,45.02792579]
[1750611287644,10.0,129.86,129.77,0.72]
[1750611287645,0.81051228,129.8,129.77,0.72]
[1750611287967,0.81051228,129.8,129.76,64.05585158]
[1750611287968,0.81051228,129.82,129.79,45.74792579]
[1750611288248,6.6146,129.85,129.79,26.0]
[1750611288249,0.81051228,129.81,129.79,26.0]
[1750611289028,0.81051228,129.81,129.76,19.36964886]
[1750611289235,0.81051228,129.79,129.78,19.02792579]
[1750611289437,0.81051228,129.8,129.78,19.02792579]
[1750611289638,0.81051228,129.79,129.78,19.02792579]
[1750611290238,0.81051228,129.78,129.77,45.02792579]
[1750611291449,0.81051228,129.78,129.77,19.02792579]
[1750611292244,0.81051228,129.78,129.74,33.74]
[1750611292435,0.81051228,129.78,129.77,19.02792579]
[1750611294859,0.81051228,129.78,129.77,45.02792579]
[1750611296579,0.81051228,129.78,129.76,19.02792579]
[1750611296767,0.81051228,129.77,129.76,26.0]
[1750611296941,0.81051228,129.76,129.73,101.38437516]
[1750611297147,0.81051228,129.75,129.74,19.02792579]
[1750611297345,0.81051228,129.75,129.74,45.02792579]
[1750611300564,0.81051228,129.76,129.74,45.70792579]
[1750611300763,0.81051228,129.8,129.78,26.0]
[1750611300954,0.81051228,129.81,129.79,19.02792579]
[1750611301280,0.81051228,129.81,129.8,19.02792579]
[1750611301579,0.81051228,129.82,129.8,19.02792579]
[1750611301893,0.81051228,129.8,129.79,45.02792579]
[1750611302069,19.75792579,129.84,129.79,45.02792579]
[1750611302070,0.81051228,129.81,129.79,45.02792579]
[1750611302378,0.81051228,129.81,129.8,19.02792579]
[1750611302756,0.81051228,129.82,129.8,19.02792579]
[1750611302971,0.81051228,129.83,129.81,19.02792579]
[1750611303284,0.81051228,129.83,129.82,19.02792579]
[1750611304285,181.22,129.88,129.81,19.02792579]
[1750611304286,0.81051228,129.82,129.81,19.02792579]
[1750611305350,19.75792579,129.85,129.79,45.02792579]
[1750611305351,0.81051228,129.8,129.79,45.02792579]
[1750611306088,0.81051228,129.81,129.77,0.68]
[1750611306250,0.81051228,129.79,129.78,45.02792579]
[1750611306453,0.81051228,129.8,129.78,45.02792579]
[1750611306684,0.81051228,129.79,129.78,45.02792579]
[1750611307057,0.81051228,129.83,129.79,0.68]
[1750611307269,0.81051228,129.83,129.79,19.32964886]
[1750611307458,0.81051228,129.81,129.79,45.02792579]
[1750611307664,0.81051228,129.8,129.79,45.02792579]
[1750611309176,0.81051228,129.81,129.79,45.02792579]
[1750611309377,0.81051228,129.8,129.79,26.0]
[1750611309676,0.81051228,129.8,129.79,45.02792579]
[1750611310878,0.81051228,129.82,129.81,26.0]
[1750611311075,0.81051228,129.83,129.81,45.02792579]
[1750611311266,0.81051228,129.83,129.82,19.02792579]
[1750611311656,0.81051228,129.83,129.81,19.02792579]
[1750611311857,0.81051228,129.82,129.81,45.02792579]
[1750611313467,0.81051228,129.82,129.81,45.70792579]
[1750611314376,0.81051228,129.82,129.81,45.02792579]
[1750611314682,0.81051228,129.81,129.8,26.0]
[1750611314861,0.81051228,129.81,129.8,45.02792579]
[1750611315366,0.81051228,129.81,129.8,45.70792579]
[1750611316283,0.81051228,129.83,129.81,0.68]